lending/lending_fUSD_20250719
["ID","MTS","AMOUNT","RATE_DAILY","PERIOD"]
[373247894,1752922283270,-480.0,0.00020164,2]
[373247895,1752922283280,-1086.48,0.00020164,2]
[373247896,1752922283289,-480.0,0.00020164,2]
[373247897,1752922283299,-823.27,0.00020164,2]
[373247898,1752922283308,-601.91,0.00020164,2]
[373247899,1752922283318,-480.0,0.00020164,2]
[373247900,1752922283327,-463.09,0.00020164,2]
[373247901,1752922283336,-2672.28,0.00020164,2]
[373247902,1752922283345,-513.99,0.00020164,2]
[373247903,1752922283355,-616.88,0.00020164,2]
[373247904,1752922283365,-1044.3,0.00020164,2]
[373247905,1752922283374,-594.04,0.00020164,2]
[373247906,1752922283383,-574.67,0.00020164,2]
[373247907,1752922283393,-480.0,0.00020164,2]
[373247908,1752922283403,-813.79,0.00020164,2]
[373247909,1752922283414,-480.0,0.00020164,2]
[373247910,1752922283423,-480.0,0.00020164,2]
[373247911,1752922283432,-480.0,0.00020164,2]
[373247912,1752922283442,-1310.77,0.00020164,2]
[373247913,1752922283452,-858.48,0.00020164,2]
[373247914,1752922283462,-3431.57,0.00020164,2]
[373247915,1752922283471,-480.0,0.00020164,2]
[373247916,1752922283480,-480.0,0.00020164,2]
[373247917,1752922283489,-480.0,0.00020164,2]
[373247918,1752922283499,-497.93,0.00020164,2]
[373247919,1752922283511,-1367.34,0.00020164,2]
[373247920,1752922283521,-1524.22,0.00020164,2]
[373247921,1752922283530,-480.0,0.00020164,2]
[373247922,1752922283540,-480.0,0.00020164,2]
[373247923,1752922283550,-480.0,0.00020164,2]
[373247924,1752922283560,-5259.12,0.00020164,2]
[373247925,1752922283570,-480.0,0.00020164,2]
[373247926,1752922283579,-480.0,0.00020164,2]
[373247927,1752922283590,-269.28003631,0.00020169,2]
[373247928,1752922283601,-500.0,0.00020172,2]
[373247929,1752922283611,-587.04,0.00020172,2]
[373247930,1752922283620,-2970.85,0.00020172,2]
[373247931,1752922283632,-500.0,0.00020173,2]
[373247932,1752922283643,-500.0,0.00020173,2]
[373247933,1752922283653,-500.0,0.00020173,2]
[373247934,1752922283663,-500.0,0.00020173,2]
[373247935,1752922283672,-500.0,0.00020173,2]
[373247936,1752922283682,-500.99190804,0.00020173,2]
[373247937,1752922283692,-500.0,0.00020173,2]
[373247938,1752922283702,-501.07918319,0.00020173,2]
[373247939,1752922283713,-500.0,0.00020173,2]
[373247940,1752922283723,-500.0,0.00020173,2]
[373247941,1752922283733,-572.04611906,0.00020173,2]
[373247942,1752922283742,-500.0,0.00020173,2]
[373247943,1752922283751,-500.0,0.00020173,2]
[373247944,1752922283761,-189276.0433,0.00020173,2]
[373247945,1752922283770,-5391.39339653,0.00020174,2]
[373247946,1752922283780,-53109.54756108,0.00020198,2]
[373247947,1752922283790,-476.80070012,0.000202,3]
[373247948,1752922283800,-200.0,0.00020223,2]
[373247949,1752922283810,-200.0,0.00020223,2]
[373247950,1752922283821,-300.0,0.00020223,2]
[373247951,1752922283831,-200.0,0.00020223,2]
[373247952,1752922283842,-2500.0,0.00020226,2]
[373247953,1752922283852,-173.13,0.00020227,2]
[373247954,1752922283861,-290.39655755,0.00020271,2]
[373247955,1752922283871,-735.7,0.00020272,2]
[373247956,1752922283881,-480.0,0.00020272,2]
[373247957,1752922283893,-456.91,0.00020272,2]
[373247958,1752922283903,-480.0,0.00020272,2]
[373247959,1752922283913,-3279.57,0.00020272,2]
[373247960,1752922283924,-480.0,0.00020272,2]
[373247961,1752922283934,-480.0,0.00020272,2]
[373247962,1752922283944,-480.0,0.00020273,2]
[373247963,1752922283954,-480.0,0.00020273,2]
[373247964,1752922283964,-215.98,0.00020273,2]
[373247965,1752922283974,-480.0,0.00020273,2]
[373247966,1752922283984,-605.49,0.00020273,2]
[373247967,1752922283995,-1000.47,0.00020273,2]
[373247968,1752922284005,-1043.59,0.00020273,2]
[373247969,1752922284015,-604.26,0.00020273,2]
[373247970,1752922284025,-480.0,0.00020273,2]
[373247971,1752922284035,-480.0,0.00020273,2]
[373247972,1752922284045,-861.59,0.00020273,2]
[373247973,1752922284055,-848.57,0.00020273,2]
[373247974,1752922284065,-511.8,0.00020273,2]
[373247975,1752922284075,-182.33,0.00020273,2]
[373247976,1752922284085,-687.69,0.00020273,2]
[373247977,1752922284096,-480.0,0.00020273,2]
[373247978,1752922284107,-3297.54,0.00020273,2]
[373247979,1752922284116,-1455.87,0.00020273,2]
[373247980,1752922284127,-495.02,0.00020273,2]
[373247981,1752922284137,-659.75,0.00020273,2]
[373247982,1752922284147,-1574.33,0.00020273,2]
[373247983,1752922284158,-2169.2,0.00020273,2]
[373247984,1752922284168,-3376.92,0.00020273,2]
[373247985,1752922284178,-588.06,0.00020273,2]
[373247986,1752922284189,-493.46,0.00020273,2]
[373247987,1752922284199,-576.04,0.00020273,2]
[373247988,1752922284209,-480.0,0.00020273,2]
[373247989,1752922284219,-743.26,0.00020273,2]
[373247990,1752922284228,-480.0,0.00020273,2]
[373247991,1752922284239,-1474.2,0.00020273,2]
[373247992,1752922284249,-2172.21,0.00020273,2]
[373247993,1752922284259,-480.0,0.00020273,2]
[373247994,1752922284269,-480.0,0.00020273,2]
[373247995,1752922284282,-513.05,0.00020273,2]
[373247996,1752922284296,-1462.78,0.00020273,2]
[373247997,1752922284306,-480.0,0.00020273,2]
[373247998,1752922284315,-480.0,0.00020273,2]
[373247999,1752922284325,-735.14,0.00020273,2]
[373248000,1752922284334,-787.17,0.00020273,2]
[373248001,1752922284344,-480.0,0.00020273,2]
[373248002,1752922284355,-1284.12,0.00020273,2]
[373248003,1752922284364,-1107.05,0.00020273,2]
[373248004,1752922284374,-480.0,0.00020273,2]
[373248005,1752922284384,-480.0,0.00020273,2]
[373248006,1752922284394,-2107.73,0.00020273,2]
[373248007,1752922284404,-480.0,0.00020273,2]
[373248008,1752922284413,-1478.58,0.00020273,2]
[373248009,1752922284423,-681.5,0.00020273,2]
[373248010,1752922284434,-2270.49,0.00020273,2]
[373248011,1752922284443,-538.13,0.00020273,2]
[373248012,1752922284453,-1412.35,0.00020273,2]
[373248013,1752922284464,-480.0,0.00020273,2]
[373248014,1752922284473,-1430.96,0.00020273,2]
[373248015,1752922284484,-480.0,0.00020273,2]
[373248016,1752922284493,-480.0,0.00020273,2]
[373248017,1752922284503,-1208.93,0.00020273,2]
[373248018,1752922284513,-480.0,0.00020273,2]
[373248019,1752922284523,-548.17,0.00020273,2]
[373248020,1752922284533,-648.45,0.00020273,2]
[373248021,1752922284543,-3722.95,0.00020273,2]
[373248022,1752922284553,-484.42,0.00020273,2]
[373248023,1752922284563,-643.93,0.00020273,2]
[373248024,1752922284575,-519.96,0.00020273,2]
[373248025,1752922284585,-1444.47,0.00020273,2]
[373248026,1752922284594,-716.2,0.00020273,2]
[373248027,1752922284605,-480.0,0.00020273,2]
[373248028,1752922284614,-480.0,0.00020273,2]
[373248029,1752922284624,-1010.12,0.00020273,2]
[373248030,1752922284635,-1134.71,0.00020273,2]
[373248031,1752922284645,-1001.22,0.00020273,2]
[373248032,1752922284655,-753.66,0.00020273,2]
[373248033,1752922284665,-1926.46,0.00020273,2]
[373248034,1752922284675,-480.0,0.00020273,2]
[373248035,1752922284684,-14763.9,0.00020273,2]
[373248036,1752922284694,-850.67,0.00020273,2]
[373248037,1752922284706,-504.26,0.00020273,2]
[373248038,1752922284716,-480.0,0.00020273,2]
[373248039,1752922284726,-584.79,0.00020273,2]
[373248040,1752922284736,-2654.42,0.00020273,2]
[373248041,1752922284746,-3399.67,0.00020273,2]
[373248042,1752922284757,-603.57,0.00020273,2]
[373248043,1752922284770,-480.0,0.00020273,2]
[373248044,1752922284780,-736.01,0.00020273,2]
[373248045,1752922284790,-528.72,0.00020273,2]
[373248046,1752922284800,-920.96,0.00020273,2]
[373248047,1752922284811,-582.63,0.00020273,2]
[373248048,1752922284821,-2078.75,0.00020273,2]
[373248049,1752922284831,-480.0,0.00020273,2]
[373248050,1752922284841,-480.0,0.00020273,2]
[373248051,1752922284852,-684.13,0.00020273,2]
[373248052,1752922284862,-480.0,0.00020273,2]
[373248053,1752922284872,-1086.48,0.00020273,2]
[373248054,1752922284882,-480.0,0.00020273,2]
[373248055,1752922284892,-823.27,0.00020273,2]
[373248056,1752922284903,-601.91,0.00020273,2]
[373248057,1752922284913,-419.49107154,0.00020273,2]
[373248058,1752922284924,-2672.28,0.00020273,2]
[373248059,1752922284934,-513.99,0.00020273,2]
[373248060,1752922284945,-616.88,0.00020273,2]
[373248061,1752922284955,-1044.3,0.00020273,2]
[373248062,1752922284966,-574.67,0.00020273,2]
[373248063,1752922284976,-480.0,0.00020273,2]
[373248064,1752922284986,-813.79,0.00020273,2]
[373248065,1752922284996,-480.0,0.00020273,2]
[373248066,1752922285006,-480.0,0.00020273,2]
[373248067,1752922285016,-480.0,0.00020273,2]
[373248068,1752922285027,-1310.77,0.00020273,2]
[373248069,1752922285037,-858.48,0.00020273,2]
[373248070,1752922285047,-3431.57,0.00020273,2]
[373248071,1752922285057,-480.0,0.00020273,2]
[373248072,1752922285067,-480.0,0.00020273,2]
[373248073,1752922285077,-480.0,0.00020273,2]
[373248074,1752922285087,-497.93,0.00020273,2]
[373248075,1752922285097,-1367.34,0.00020273,2]
[373248076,1752922285107,-1524.22,0.00020273,2]
[373248077,1752922285117,-480.0,0.00020273,2]
[373248078,1752922285127,-480.0,0.00020273,2]
[373248079,1752922285138,-480.0,0.00020273,2]
[373248080,1752922285147,-5259.12,0.00020273,2]
[373248081,1752922285157,-480.0,0.00020273,2]
[373248082,1752922285167,-480.0,0.00020273,2]
[373248083,1752922285177,-1014.28442773,0.0002031,2]
[373248084,1752922285187,-587.04,0.00020332,2]
[373248085,1752922285197,-2970.85,0.00020332,2]
[373248086,1752922285207,-500.0,0.00020335,2]
[373248087,1752922285217,-1513.547,0.00020335,2]
[373248088,1752922285227,-951.07,0.00020335,2]
[373248089,1752922285237,-1273.445,0.00020335,2]
[373248090,1752922285247,-1686.0,0.00020335,2]
[373248091,1752922285257,-595.0,0.00020335,2]
[373248092,1752922285267,-562.0,0.00020335,2]
[373248093,1752922285277,-1287.0,0.00020335,2]
[373248094,1752922285287,-14700.766,0.00020335,2]
[373248095,1752922285297,-260.89,0.00020356,2]
[373248096,1752922285307,-1500.0,0.00020368,2]
[373248097,1752922285317,-455.9349861,0.00020368,2]
[373248098,1752922285327,-1500.0,0.00020368,2]
[373248099,1752922285337,-735.7,0.00020382,2]
[373248100,1752922285347,-480.0,0.00020382,2]
[373248101,1752922285357,-480.0,0.00020382,2]
[373248102,1752922285367,-3279.57,0.00020382,2]
[373248103,1752922285376,-480.0,0.00020382,2]
[373248104,1752922285387,-480.0,0.00020382,2]
[373248105,1752922285397,-386.64,0.00020383,2]
[373248106,1752922285407,-480.0,0.00020383,2]
[373248107,1752922285417,-480.0,0.00020383,2]
[373248108,1752922285427,-605.49,0.00020383,2]
[373248109,1752922285437,-1000.47,0.00020383,2]
[373248110,1752922285447,-1043.59,0.00020383,2]
[373248111,1752922285456,-604.26,0.00020383,2]
[373248112,1752922285466,-480.0,0.00020383,2]
[373248113,1752922285476,-480.0,0.00020383,2]
[373248114,1752922285485,-861.59,0.00020383,2]
[373248115,1752922285497,-848.57,0.00020383,2]
[373248116,1752922285507,-511.8,0.00020383,2]
[373248117,1752922285517,-687.69,0.00020383,2]
[373248118,1752922285527,-392.45,0.00020383,2]
[373248119,1752922285537,-3297.54,0.00020383,2]
[373248120,1752922285548,-1455.87,0.00020383,2]
[373248121,1752922285558,-495.02,0.00020383,2]
[373248122,1752922285569,-659.75,0.00020383,2]
[373248123,1752922285579,-1574.33,0.00020383,2]
[373248124,1752922285589,-2169.2,0.00020383,2]
[373248125,1752922285599,-3376.92,0.00020383,2]
[373248126,1752922285609,-588.06,0.00020383,2]
[373248127,1752922285620,-493.46,0.00020383,2]
[373248128,1752922285630,-576.04,0.00020383,2]
[373248129,1752922285643,-480.0,0.00020383,2]
[373248130,1752922285654,-743.26,0.00020383,2]
[373248131,1752922285664,-480.0,0.00020383,2]
[373248132,1752922285674,-1474.2,0.00020383,2]
[373248133,1752922285685,-2172.21,0.00020383,2]
[373248134,1752922285695,-480.0,0.00020383,2]
[373248135,1752922285706,-480.0,0.00020383,2]
[373248136,1752922285717,-513.05,0.00020383,2]
[373248137,1752922285727,-1462.78,0.00020383,2]
[373248138,1752922285737,-480.0,0.00020383,2]
[373248139,1752922285747,-480.0,0.00020383,2]
[373248140,1752922285757,-735.14,0.00020383,2]
[373248141,1752922285767,-787.17,0.00020383,2]
[373248142,1752922285777,-480.0,0.00020383,2]
[373248143,1752922285787,-1284.12,0.00020383,2]
[373248144,1752922285797,-1107.05,0.00020383,2]
[373248145,1752922285808,-560.93,0.00020383,2]
[373248146,1752922285818,-480.0,0.00020383,2]
[373248147,1752922285828,-2107.73,0.00020383,2]
[373248148,1752922285838,-480.0,0.00020383,2]
[373248149,1752922285848,-1478.58,0.00020383,2]
[373248150,1752922285858,-681.5,0.00020383,2]
[373248151,1752922285868,-2270.49,0.00020383,2]
[373248152,1752922285878,-538.13,0.00020383,2]
[373248153,1752922286122,-1412.35,0.00020383,2]
[373248154,1752922286134,-480.0,0.00020383,2]
[373248155,1752922286144,-1430.96,0.00020383,2]
[373248156,1752922286154,-480.0,0.00020383,2]
[373248157,1752922286163,-294.8,0.00020383,2]
[373248158,1752922286173,-1208.93,0.00020383,2]
[373248159,1752922286183,-480.0,0.00020383,2]
[373248160,1752922286193,-548.17,0.00020383,2]
[373248161,1752922286204,-648.45,0.00020383,2]
[373248162,1752922286213,-3722.95,0.00020383,2]
[373248163,1752922286222,-484.42,0.00020383,2]
[373248164,1752922286232,-643.93,0.00020383,2]
[373248165,1752922286242,-519.96,0.00020383,2]
[373248166,1752922286251,-1444.47,0.00020383,2]
[373248167,1752922286261,-716.2,0.00020383,2]
[373248168,1752922286271,-480.0,0.00020383,2]
[373248169,1752922286280,-480.0,0.00020383,2]
[373248170,1752922286291,-1010.12,0.00020383,2]
[373248171,1752922286301,-1134.71,0.00020383,2]
[373248172,1752922286312,-1001.22,0.00020383,2]
[373248173,1752922286323,-753.66,0.00020383,2]
[373248174,1752922286333,-1926.46,0.00020383,2]
[373248175,1752922286343,-176.11,0.00020383,2]
[373248176,1752922286352,-14763.9,0.00020383,2]
[373248177,1752922286362,-850.67,0.00020383,2]
[373248178,1752922286372,-504.26,0.00020383,2]
[373248179,1752922286382,-480.0,0.00020383,2]
[373248180,1752922286392,-2654.42,0.00020383,2]
[373248181,1752922286401,-584.79,0.00020383,2]
[373248182,1752922286411,-3399.67,0.00020383,2]
[373248183,1752922286421,-603.57,0.00020383,2]
[373248184,1752922286431,-528.38,0.00020383,2]
[373248185,1752922286440,-736.01,0.00020383,2]
[373248186,1752922286450,-528.72,0.00020383,2]
[373248187,1752922286460,-920.96,0.00020383,2]
[373248188,1752922286471,-582.63,0.00020383,2]
[373248189,1752922286480,-2078.75,0.00020383,2]
[373248190,1752922286490,-412.0,0.00020383,2]
[373248191,1752922286499,-480.0,0.00020383,2]
[373248192,1752922286508,-684.13,0.00020383,2]
[373248193,1752922286518,-480.0,0.00020383,2]
[373248194,1752922286528,-1086.48,0.00020383,2]
[373248195,1752922286538,-480.0,0.00020383,2]
[373248196,1752922286547,-823.27,0.00020383,2]
[373248197,1752922286557,-601.91,0.00020383,2]
[373248198,1752922286566,-2672.28,0.00020383,2]
[373248199,1752922286577,-513.99,0.00020383,2]
[373248200,1752922286587,-616.88,0.00020383,2]
[373248201,1752922286596,-1044.3,0.00020383,2]
[373248202,1752922286606,-574.67,0.00020383,2]
[373248203,1752922286615,-480.0,0.00020383,2]
[373248204,1752922286625,-813.79,0.00020383,2]
[373248205,1752922286637,-480.0,0.00020383,2]
[373248206,1752922286646,-480.0,0.00020383,2]
[373248207,1752922286656,-480.0,0.00020383,2]
[373248208,1752922286665,-1310.77,0.00020383,2]
[373248209,1752922286675,-858.48,0.00020383,2]
[373248210,1752922286685,-3431.57,0.00020383,2]
[373248211,1752922286694,-480.0,0.00020383,2]
[373248212,1752922286704,-480.0,0.00020383,2]
[373248213,1752922286715,-480.0,0.00020383,2]
[373248214,1752922286725,-497.93,0.00020383,2]
[373248215,1752922286736,-1367.34,0.00020383,2]
[373248216,1752922286745,-1524.22,0.00020383,2]
[373248217,1752922286755,-480.0,0.00020383,2]
[373248218,1752922286765,-298.14355197,0.00020383,2]
[373248219,1752922286776,-5259.12,0.00020383,2]
[373248220,1752922286786,-532.11491574,0.00020383,2]
[373248221,1752922286795,-480.0,0.00020383,2]
[373248222,1752922286804,-480.0,0.00020383,2]
[373248223,1752922286815,-2501.21,0.00020388,2]
[373248224,1752922286825,-484.95,0.00020391,2]
[373248225,1752922286835,-200.0,0.00020425,2]
[373248226,1752922286844,-200.0,0.00020425,2]
[373248227,1752922286854,-5391.39339653,0.00020441,2]
[373248228,1752922286864,-2501.21,0.00020447,2]
[373248229,1752922286874,-53109.54756108,0.00020477,2]
[373248230,1752922286884,-735.7,0.00020491,2]
[373248231,1752922286894,-480.0,0.00020491,2]
[373248232,1752922286904,-480.0,0.00020491,2]
[373248233,1752922286914,-3279.57,0.00020491,2]
[373248234,1752922286924,-383.26,0.00020491,2]
[373248235,1752922286933,-480.0,0.00020491,2]
[373248236,1752922286943,-587.04,0.00020492,2]
[373248237,1752922286953,-2970.85,0.00020492,2]
[373248238,1752922286963,-508.0,0.00020493,5]
[373248239,1752922286972,-480.0,0.00020493,2]
[373248240,1752922286982,-480.0,0.00020493,2]
[373248241,1752922286992,-605.49,0.00020493,2]
[373248242,1752922287002,-1000.47,0.00020493,2]
[373248243,1752922287011,-1043.59,0.00020493,2]
[373248244,1752922287021,-604.26,0.00020493,2]
[373248245,1752922287032,-480.0,0.00020493,2]
[373248246,1752922287041,-480.0,0.00020493,2]
[373248247,1752922287051,-861.59,0.00020493,2]
[373248248,1752922287061,-848.57,0.00020493,2]
[373248249,1752922287071,-511.8,0.00020493,2]
[373248250,1752922287082,-687.69,0.00020493,2]
[373248251,1752922287091,-3297.54,0.00020493,2]
[373248252,1752922287102,-1455.87,0.00020493,2]
[373248253,1752922287112,-495.02,0.00020493,2]
[373248254,1752922287122,-659.75,0.00020493,2]
[373248255,1752922287131,-1574.33,0.00020493,2]
[373248256,1752922287140,-2169.2,0.00020493,2]
[373248257,1752922287151,-3376.92,0.00020493,2]
[373248258,1752922287160,-588.06,0.00020493,2]
[373248259,1752922287169,-493.46,0.00020493,2]
[373248260,1752922287180,-576.04,0.00020493,2]
[373248261,1752922287189,-480.0,0.00020493,2]
[373248262,1752922287199,-743.26,0.00020493,2]
[373248263,1752922287208,-604.48,0.00020493,2]
[373248264,1752922287218,-1474.2,0.00020493,2]
[373248265,1752922287227,-2172.21,0.00020493,2]
[373248266,1752922287237,-480.0,0.00020493,2]
[373248267,1752922287246,-480.0,0.00020493,2]
[373248268,1752922287255,-513.05,0.00020493,2]
[373248269,1752922287265,-1462.78,0.00020493,2]
[373248270,1752922287274,-332.89,0.00020493,2]
[373248271,1752922287284,-480.0,0.00020493,2]
[373248272,1752922287293,-735.14,0.00020493,2]
[373248273,1752922287303,-787.17,0.00020493,2]
[373248274,1752922287312,-480.0,0.00020493,2]
[373248275,1752922287322,-1284.12,0.00020493,2]
[373248276,1752922287332,-1107.05,0.00020493,2]
[373248277,1752922287342,-480.0,0.00020493,2]
[373248278,1752922287351,-2107.73,0.00020493,2]
[373248279,1752922287361,-480.0,0.00020493,2]
[373248280,1752922287371,-1478.58,0.00020493,2]
[373248281,1752922287381,-681.5,0.00020493,2]
[373248282,1752922287391,-2270.49,0.00020493,2]
[373248283,1752922287400,-538.13,0.00020493,2]
[373248284,1752922287410,-1412.35,0.00020493,2]
[373248285,1752922287420,-480.0,0.00020493,2]
[373248286,1752922287430,-1430.96,0.00020493,2]
[373248287,1752922287439,-480.0,0.00020493,2]
[373248288,1752922287449,-1208.93,0.00020493,2]
[373248289,1752922287458,-480.0,0.00020493,2]
[373248290,1752922287469,-548.17,0.00020493,2]
[373248291,1752922287479,-648.45,0.00020493,2]
[373248292,1752922287488,-3722.95,0.00020493,2]
[373248293,1752922287498,-484.42,0.00020493,2]
[373248294,1752922287508,-643.93,0.00020493,2]
[373248295,1752922287518,-519.96,0.00020493,2]
[373248296,1752922287527,-1444.47,0.00020493,2]
[373248297,1752922287537,-716.2,0.00020493,2]
[373248298,1752922287546,-197.46,0.00020493,2]
[373248299,1752922287556,-480.0,0.00020493,2]
[373248300,1752922287566,-1010.12,0.00020493,2]
[373248301,1752922287577,-1134.71,0.00020493,2]
[373248302,1752922287587,-1001.22,0.00020493,2]
[373248303,1752922287597,-753.66,0.00020493,2]
[373248304,1752922287608,-1926.46,0.00020493,2]
[373248305,1752922287617,-14763.9,0.00020493,2]
[373248306,1752922287627,-850.67,0.00020493,2]
[373248307,1752922287641,-504.26,0.00020493,2]
[373248308,1752922287650,-273.54,0.00020493,2]
[373248309,1752922287660,-2654.42,0.00020493,2]
[373248310,1752922287669,-584.79,0.00020493,2]
[373248311,1752922287680,-3399.67,0.00020493,2]
[373248312,1752922287690,-603.57,0.00020493,2]
[373248313,1752922287699,-736.01,0.00020493,2]
[373248314,1752922287709,-528.72,0.00020493,2]
[373248315,1752922287719,-920.96,0.00020493,2]
[373248316,1752922287729,-582.63,0.00020493,2]
[373248317,1752922287739,-2078.75,0.00020493,2]
[373248318,1752922287749,-352.5,0.00020493,2]
[373248319,1752922287759,-684.13,0.00020493,2]
[373248320,1752922287769,-480.0,0.00020493,2]
[373248321,1752922287779,-1086.48,0.00020493,2]
[373248322,1752922287789,-480.0,0.00020493,2]
[373248323,1752922287800,-823.27,0.00020493,2]
[373248324,1752922287809,-601.91,0.00020493,2]
[373248325,1752922287819,-2672.28,0.00020493,2]
[373248326,1752922287829,-513.99,0.00020493,2]
[373248327,1752922287839,-616.88,0.00020493,2]
[373248328,1752922287849,-1044.3,0.00020493,2]
[373248329,1752922287858,-574.67,0.00020493,2]
[373248330,1752922287868,-480.0,0.00020493,2]
[373248331,1752922287878,-813.79,0.00020493,2]
[373248332,1752922287889,-480.0,0.00020493,2]
[373248333,1752922287898,-480.0,0.00020493,2]
[373248334,1752922287909,-480.0,0.00020493,2]
[373248335,1752922287918,-1310.77,0.00020493,2]
[373248336,1752922287928,-858.48,0.00020493,2]
[373248337,1752922287938,-3431.57,0.00020493,2]
[373248338,1752922287948,-480.0,0.00020493,2]
[373248339,1752922287958,-480.0,0.00020493,2]
[373248340,1752922287967,-480.0,0.00020493,2]
[373248341,1752922287977,-497.93,0.00020493,2]
[373248342,1752922287987,-1367.34,0.00020493,2]
[373248343,1752922287997,-1524.22,0.00020493,2]
[373248344,1752922288007,-480.0,0.00020493,2]
[373248345,1752922288017,-5259.12,0.00020493,2]
[373248346,1752922288027,-480.0,0.00020493,2]
[373248347,1752922288038,-480.0,0.00020493,2]
[373248348,1752922288047,-1083.0,0.00020493,2]
[373248349,1752922288057,-513.18,0.00020517,2]
[373248350,1752922288067,-152.87,0.00020565,2]
[373248351,1752922288077,-228.17,0.00020595,2]
[373248352,1752922288087,-500.0,0.00020599,2]
[373248353,1752922288096,-735.7,0.00020601,2]
[373248354,1752922288106,-480.0,0.00020601,2]
[373248355,1752922288116,-480.0,0.00020601,2]
[373248356,1752922288126,-3279.57,0.00020601,2]
[373248357,1752922288135,-480.0,0.00020601,2]
[373248358,1752922288144,-4479.18390175,0.00020602,2]
[373248359,1752922288154,-480.0,0.00020602,2]
[373248360,1752922288164,-480.0,0.00020602,2]
[373248361,1752922288174,-605.49,0.00020602,2]
[373248362,1752922288183,-1000.47,0.00020602,2]
[373248363,1752922288194,-1043.59,0.00020602,2]
[373248364,1752922288203,-604.26,0.00020602,2]
[373248365,1752922288213,-480.0,0.00020602,2]
[373248366,1752922288223,-480.0,0.00020602,2]
[373248367,1752922288240,-861.59,0.00020602,2]
[373248368,1752922288250,-848.57,0.00020602,2]
[373248369,1752922288261,-511.8,0.00020602,2]
[373248370,1752922288272,-687.69,0.00020602,2]
[373248371,1752922288282,-3297.54,0.00020602,2]
[373248372,1752922288291,-1455.87,0.00020602,2]
[373248373,1752922288301,-495.02,0.00020602,2]
[373248374,1752922288312,-659.75,0.00020602,2]
[373248375,1752922288322,-1574.33,0.00020602,2]
[373248376,1752922288331,-3376.92,0.00020602,2]
[373248377,1752922288340,-2169.2,0.00020602,2]
[373248378,1752922288350,-588.06,0.00020602,2]
[373248379,1752922288360,-493.46,0.00020602,2]
[373248380,1752922288370,-576.04,0.00020602,2]
[373248381,1752922288380,-480.0,0.00020602,2]
[373248382,1752922288390,-743.26,0.00020602,2]
[373248383,1752922288399,-1474.2,0.00020602,2]
[373248384,1752922288408,-2172.21,0.00020602,2]
[373248385,1752922288418,-480.0,0.00020602,2]
[373248386,1752922288427,-480.0,0.00020602,2]
[373248387,1752922288436,-513.05,0.00020602,2]
[373248388,1752922288446,-1462.78,0.00020602,2]
[373248389,1752922288520,-480.0,0.00020602,2]
[373248390,1752922288530,-735.14,0.00020602,2]
[373248391,1752922288539,-787.17,0.00020602,2]
[373248392,1752922288549,-480.0,0.00020602,2]
[373248393,1752922288558,-1284.12,0.00020602,2]